fUSD/lending_fUSD_20250602
["ID","MTS","AMOUNT","RATE_DAILY","PERIOD"]
[363852010,1748898662329,-77202.37930518,0.00039806,2]
[363852011,1748898662339,-2201.06462399,0.00039806,2]
[363852012,1748898662348,-22865.93842522,0.00039806,2]
[363852013,1748898662359,-12866.99163084,0.00039806,2]
[363852014,1748898662370,-1924.651769,0.00039806,2]
[363852015,1748898662379,-5033.08429999,0.00039806,2]
[363852017,1748898662388,-184.49768981,0.00039806,2]
[363852019,1748898662398,-14903.14981921,0.00039806,3]
[363852021,1748898662407,-643.0,0.00039806,2]
[363852023,1748898662417,-3100.0,0.00039806,5]
[363852025,1748898662428,-972.57071269,0.00039806,2]
[363852027,1748898662438,-7784.41781948,0.00039806,2]
[363852029,1748898662447,-500.0,0.00039806,10]
[363852030,1748898662456,-19000.27590411,0.00039806,5]
[363852032,1748898662465,-25417.65915149,0.00039806,7]
[363852034,1748898662476,-574.56365089,0.00039806,2]
[363852036,1748898662486,-1840.57427917,0.00039806,2]
[363852038,1748898662498,-3251.1315019,0.00039806,2]
[363852039,1748898662508,-155.00601174,0.00039806,2]
[363852040,1748898662518,-175.85413394,0.00039806,2]
[363852041,1748898662528,-10740.23316202,0.00039806,15]
[363852042,1748898662538,-7103.66983407,0.00039806,2]
[363852043,1748898662548,-550.0,0.00039806,2]
[363852044,1748898662557,-1470.27656139,0.00039806,2]
[363852045,1748898662567,-1010.82790104,0.00039806,2]
[363852047,1748898662576,-1038.67160671,0.00039806,7]
[363852049,1748898662585,-20295.84534469,0.00039806,2]
[363852051,1748898662595,-1000.30277935,0.00039806,2]
[363852053,1748898662604,-10732.02129079,0.00039806,2]
[363852055,1748898662617,-169711.02868369,0.00039806,2]
[363852057,1748898662627,-14992.80930069,0.00039806,2]
[363852058,1748898662636,-229.59816406,0.00039806,2]
[363852060,1748898662805,-174.24621972,0.00039806,2]
[363852061,1748898662815,-1284.69456038,0.00039806,4]
[363852062,1748898662825,-6000.0,0.00039806,2]
[363852063,1748898662834,-376.48862205,0.00039806,2]
[363852064,1748898662843,-1474.68973678,0.00039806,2]
[363852065,1748898662854,-1036.38664209,0.00039806,2]
[363852066,1748898662863,-465.80866711,0.00039806,7]
[363852067,1748898662873,-5112.13344481,0.00039806,14]
[363852068,1748898662882,-564.76573374,0.00039806,2]
[363852069,1748898662892,-3334.50758825,0.00039806,2]
[363852070,1748898662902,-150.0,0.00039806,2]
[363852071,1748898662911,-225.9725442,0.00039806,14]
[363852072,1748898662921,-7795.39116625,0.00039806,2]
[363852073,1748898662930,-628.09446456,0.00039806,2]
[363852074,1748898662940,-219.33462334,0.00039806,5]
[363852075,1748898662949,-215.31582718,0.00039806,2]
[363852076,1748898662959,-164764.07000442,0.00039806,2]
[363852077,1748898662968,-451.3263144,0.00039806,2]
[363852078,1748898662978,-1070.1355225,0.00039806,2]
[363852079,1748898662987,-2500.0,0.00039806,2]
[363852080,1748898662998,-580.95283522,0.00039806,2]
[363852081,1748898663007,-343.18431997,0.00039806,2]
[363852082,1748898663017,-1877.8776898,0.00039806,2]
[363852083,1748898663027,-1100.0,0.00039806,2]
[363852084,1748898663038,-914.70839316,0.00039806,2]
[363852085,1748898663048,-15637.60422696,0.00039806,2]
[363852086,1748898663057,-482.91857595,0.00039806,2]
[363852087,1748898663067,-230.53204081,0.00039806,2]
[363852088,1748898663077,-1592.63212464,0.00039806,2]
[363852089,1748898663087,-1083.23634098,0.00039806,5]
[363852090,1748898663097,-549.85190333,0.00039806,2]
[363852091,1748898663107,-5022.8458551,0.00039806,2]
[363852092,1748898663118,-1014.63238328,0.00039806,2]
[363852093,1748898663128,-275.21222422,0.00039806,10]
[363852094,1748898663139,-365.83225387,0.00039806,2]
[363852095,1748898663149,-2211.71748192,0.00039806,2]
[363852096,1748898663159,-284.49791588,0.00039806,2]
[363852097,1748898663169,-275.0,0.00039806,14]
[363852098,1748898663181,-14824.64837825,0.00039806,2]
[363852099,1748898663191,-23108.35131116,0.00039806,2]
[363852100,1748898663201,-500.0,0.00039806,7]
[363852101,1748898663212,-1841.79493826,0.00039806,2]
[363852102,1748898663222,-6793.59806751,0.00039806,4]
[363852103,1748898663232,-217.8051564,0.00039806,7]
[363852104,1748898663243,-1120.71414928,0.00039806,2]
[363852105,1748898663252,-5213.49326679,0.00039806,4]
[363852106,1748898663262,-24733.2474077,0.00039806,5]
[363852107,1748898663274,-375.32536352,0.00039806,2]
[363852108,1748898663284,-3826.76151773,0.00039806,15]
[363852109,1748898663295,-392.01185934,0.00039806,2]
[363852110,1748898663305,-564.41590113,0.00039806,5]
[363852111,1748898663315,-202449.92764678,0.00039806,2]
[363852112,1748898663326,-122340.53132927,0.00039806,2]
[363852113,1748898663335,-581.97382957,0.00039806,2]
[363852114,1748898663346,-332.1357745,0.00039806,2]
[363852115,1748898663356,-150.0,0.00039806,2]
[363852116,1748898663366,-150.0,0.00039806,3]
[363852117,1748898663376,-150.0,0.00039806,7]
[363852118,1748898663386,-1192.16166015,0.00039806,2]
[363852119,1748898663397,-7945.33384588,0.00039806,7]
[363852120,1748898663407,-16809.47710057,0.00039806,20]
[363852121,1748898663416,-3718.35830036,0.00039806,7]
[363852122,1748898663425,-1900.87709862,0.00039806,7]
[363852123,1748898663435,-185967.31656886,0.00039806,7]
[363852124,1748898663444,-2316.8914302,0.00039806,7]
[363852125,1748898663453,-1377.19600886,0.00039806,20]
[363852126,1748898663463,-470.41999084,0.00039806,5]
[363852127,1748898663474,-1500.88867156,0.00039806,10]
[363852128,1748898663484,-2259.27382301,0.00039806,10]
[363852129,1748898663494,-2284.75117762,0.00039806,10]
[363852130,1748898663505,-2562.69800856,0.00039806,2]
[363852131,1748898663515,-14118.01446093,0.00039806,2]
[363852132,1748898663525,-221.05741988,0.00039806,2]
[363852133,1748898663535,-403.61285898,0.00039806,2]
[363852134,1748898663545,-7004.78071003,0.00039806,2]
[363852135,1748898663555,-20316.49392786,0.00039806,2]
[363852136,1748898663565,-10878.12394786,0.00039806,2]
[363852137,1748898663575,-1711.37059856,0.00039806,2]
[363852138,1748898663586,-1435.39996153,0.00039806,2]
[363852139,1748898663596,-203.40294431,0.00039806,2]
[363852140,1748898663608,-865.73502533,0.00039806,2]
[363852141,1748898663619,-283.57083089,0.00039806,2]
[363852142,1748898663629,-5703.4571589,0.00039806,2]
[363852143,1748898663639,-754.08344244,0.00039806,2]
[363852144,1748898663650,-1016.49331418,0.00039806,2]
[363852145,1748898663660,-162.91,0.00039806,2]
[363852146,1748898663669,-4595.54077832,0.00039806,2]
[363852147,1748898663679,-10229.47462047,0.00039806,2]
[363852148,1748898663688,-162.20739119,0.00039806,2]
[363852149,1748898663700,-2179.7568508,0.00039806,2]
[363852150,1748898663709,-461.96958647,0.00039806,2]
[363852151,1748898663719,-30000.0,0.00039806,2]
[363852152,1748898663729,-150.0,0.00039806,2]
[363852153,1748898663739,-7507.96172934,0.00039806,2]
[363852154,1748898663750,-160.96494854,0.00039806,2]
[363852155,1748898663760,-160.0,0.00039806,2]
[363852156,1748898663769,-5948.93723502,0.00039806,2]
[363852157,1748898663779,-100304.71269468,0.00039806,2]
[363852158,1748898663789,-5000.0,0.00039806,15]
[363852159,1748898663800,-1005.66981437,0.00039806,7]
[363852160,1748898663810,-877.41554978,0.00039806,2]
[363852161,1748898663820,-4901.8363567,0.00039806,10]
[363852162,1748898663830,-100713.96137822,0.00039806,2]
[363852163,1748898664422,-0.00699422,0.00039806,2]
[363852164,1748898664434,-480425.75668512,0.00039806,2]
[363852165,1748898664449,-10416.416,0.00039806,2]
[363852166,1748898664460,-1080.35821842,0.00039806,2]
[363852167,1748898664840,-150.0,0.00029704,2]
[363852168,1748898664849,-300.0,0.00038397,7]
[363852169,1748898664859,-150.0,0.00038984,7]
[363852170,1748898664868,-41043.79689397,0.00039806,2]
[363852171,1748898664878,-21489.63302603,0.00039806,3]
[363852172,1748898664889,-761.39981363,0.00039806,3]
[363852173,1748898664900,-288.60018637,0.00039806,3]
[363852174,1748898664979,-1921.45030133,0.00039806,3]
[363852175,1748898664991,-1385.19,0.00039806,3]
[363852176,1748898665003,-380.499066,0.00039806,3]
[363852177,1748898665015,-3814.71535158,0.00039806,3]
[363852178,1748898665030,-361.459151,0.00039806,3]
[363852179,1748898665043,-22464.044,0.00039806,3]
[363852180,1748898665171,-460080.67040529,0.00039806,3]
[363852181,1748898665183,-3831.24174981,0.00039806,3]
[363852182,1748898665934,-305.92,0.00025547,2]
[363852183,1748898665945,-427.0,0.0002899,5]
[363852184,1748898665955,-180.14448744,0.00031279,6]
[363852185,1748898665965,-370.76324989,0.000324,60]
[363852186,1748898665975,-4000.0,0.00032877,30]
[363852187,1748898665986,-180937.70270571,0.00039806,3]
[363852188,1748898666004,-913.149955,0.00039806,3]
[363852189,1748898666029,-67590.15963544,0.00039806,3]
[363852190,1748898666039,-86894.23822027,0.00039806,2]
[363852191,1748898666049,-2778.52126586,0.00039806,2]
[363852192,1748898666059,-999.13672347,0.00039806,2]
[363852193,1748898666070,-162.0,0.00039806,2]
[363852194,1748898666080,-5579.37507509,0.00039806,2]
[363852195,1748898666090,-170.94891581,0.00039806,2]
[363852196,1748898666100,-257.67923431,0.00039806,2]
[363852197,1748898666111,-30741.94223674,0.00039806,3]
[363852198,1748898666124,-514.73715875,0.00039806,3]
[363852199,1748898666136,-610.68180385,0.00039806,3]
[363852200,1748898666149,-389.31819615,0.00039806,3]
[363852201,1748898666162,-382.95992179,0.00039806,3]
[363852202,1748898666177,-602.0,0.00039806,3]
[363852203,1748898666189,-515070.07900283,0.00039806,3]
[363852204,1748898666203,-479.83,0.00039806,3]
[363852205,1748898666219,-500.0,0.00039806,3]
[363852206,1748898666231,-1108.77914718,0.00039806,3]
[363852207,1748898666249,-240929.44198523,0.00039806,3]
[363852208,1748898666263,-271009.73151352,0.00039806,3]
[363852209,1748898666274,-1000.0,0.00039806,2]
[363852210,1748898666284,-185.46,0.00039806,5]
[363852211,1748898666295,-3092.24590803,0.00039806,7]
[363852212,1748898666306,-1000.0,0.00039806,30]
[363852213,1748898666316,-1000.0,0.00039806,30]
[363852214,1748898666327,-1000.0,0.00039806,30]
[363852215,1748898666338,-1000.0,0.00039806,30]
[363852216,1748898666349,-1000.0,0.00039806,30]
[363852217,1748898666359,-1000.0,0.00039806,30]
[363852218,1748898666369,-1000.0,0.00039806,30]
[363852219,1748898666381,-1000.0,0.00039806,30]
[363852220,1748898666398,-1000.0,0.00039806,30]
[363852221,1748898666412,-1000.0,0.00039806,30]
[363852222,1748898666425,-1000.0,0.00039806,30]
[363852223,1748898666440,-1000.0,0.00039806,30]
[363852224,1748898666455,-817.71872214,0.00039806,30]
[363852225,1748898666470,-1000.0,0.00039806,30]
[363852226,1748898666483,-1000.0,0.00039806,30]
[363852227,1748898666495,-296.92858645,0.00039806,30]
[363852228,1748898666510,-1000.0,0.00039806,30]
[363852229,1748898666525,-799.998833,0.00039806,30]
[363852230,1748898666539,-1000.0,0.00039806,30]
[363852231,1748898666555,-1000.0,0.00039806,30]
[363852232,1748898666571,-1453.0,0.00039806,31]
[363852233,1748898666586,-1453.0,0.00039806,31]
[363852234,1748898666600,-1454.0,0.00039806,31]
[363852235,1748898666618,-1453.0,0.00039806,31]
[363852236,1748898666632,-1000.0,0.00039806,30]
[363852237,1748898666646,-1000.0,0.00039806,30]
[363852238,1748898666659,-1000.0,0.00039806,30]
[363852239,1748898666673,-1000.0,0.00039806,30]
[363852240,1748898666689,-1000.0,0.00039806,30]
[363852241,1748898666700,-1000.0,0.00039806,30]
[363852242,1748898666714,-1000.0,0.00039806,30]
[363852243,1748898666729,-1000.0,0.00039806,30]
[363852244,1748898666741,-1000.0,0.00039806,30]
[363852245,1748898666753,-1000.0,0.00039806,30]
[363852246,1748898666771,-1000.0,0.00039806,30]
[363852247,1748898666784,-3274.43053691,0.00039806,30]
[363852248,1748898666797,-3245.99876891,0.00039806,30]
[363852249,1748898666810,-518.89128097,0.00039806,30]
[363852250,1748898666824,-387.80657078,0.00039806,30]
[363852251,1748898666836,-889.59934906,0.00039806,30]
[363852252,1748898666850,-1000.0,0.00039806,30]
[363852253,1748898666863,-2830.36700923,0.00039806,30]
[363852254,1748898666876,-2424.58824883,0.00039806,30]
[363852255,1748898666890,-1078.43458118,0.00039806,30]
[363852256,1748898666904,-2039.9446224,0.00039806,30]
[363852257,1748898666917,-750.69155945,0.00039806,30]
[363852258,1748898666930,-2084.69827053,0.00039806,30]
[363852259,1748898666943,-487.86350459,0.00039806,30]
[363852260,1748898666956,-2500.0,0.00039806,30]
[363852261,1748898666969,-871.3664914,0.00039806,30]
[363852262,1748898666982,-2181.05718118,0.00039806,30]
[363852263,1748898666995,-879.70046596,0.00039806,30]
[363852264,1748898667009,-207.82261174,0.00039806,30]
[363852265,1748898667022,-1758.4402597,0.00039806,30]
[363852266,1748898667035,-947.56112509,0.00039806,30]
[363852267,1748898667048,-212.08382727,0.00039806,30]
[363852268,1748898667062,-978.91525337,0.00039806,30]
[363852269,1748898667075,-2295.65564501,0.00039806,30]
[363852270,1748898667089,-1030.5804569,0.00039806,30]
[363852271,1748898667103,-357.79018079,0.00039806,30]
[363852272,1748898667118,-1161.84063731,0.00039806,30]
[363852273,1748898667133,-516.58026293,0.00039806,31]
[363852274,1748898667147,-1030.41847326,0.00039806,30]
[363852275,1748898667161,-3145.00249242,0.00039806,30]
[363852276,1748898667175,-970.41946416,0.00039806,30]
[363852277,1748898667189,-997.0,0.00039806,30]
[363852278,1748898667202,-900.43716923,0.00039806,30]
[363852279,1748898667215,-2281.76049013,0.00039806,30]
[363852280,1748898667229,-207.88618645,0.00039806,30]
[363852281,1748898667244,-2773.55031853,0.00039806,30]
[363852282,1748898667257,-272.28931224,0.00039806,30]
[363852283,1748898667271,-1250.13245649,0.00039806,30]
[363852284,1748898667283,-2749.75181017,0.00039806,30]
[363852285,1748898667295,-561.58401705,0.00039806,30]
[363852286,1748898667307,-1794.81918477,0.00039806,30]
[363852287,1748898667320,-207.70691138,0.00039806,31]
[363852288,1748898667332,-2376.47776176,0.00039806,30]
[363852289,1748898667344,-662.44787173,0.00039806,30]
[363852290,1748898667356,-561.56482481,0.00039806,30]
[363852291,1748898667368,-1493.09939458,0.00039806,30]
[363852292,1748898667379,-1252.62089433,0.00039806,30]
[363852293,1748898667392,-2243.7576198,0.00039806,30]
[363852294,1748898667403,-2073.4809267,0.00039806,30]
[363852295,1748898667416,-267.41359644,0.00039806,30]
[363852296,1748898667428,-1796.10679069,0.00039806,45]
[363852297,1748898667439,-2321.26185309,0.00039806,30]
[363852298,1748898667458,-480.79539262,0.00039806,30]
[363852299,1748898667470,-2025.56346256,0.00039806,30]
[363852300,1748898667483,-1981.94761648,0.00039806,30]
[363852301,1748898667496,-622.6744843,0.00039806,30]
[363852302,1748898667508,-9983.32727859,0.00039806,2]
[363852303,1748898667521,-17383.0,0.00039806,30]
[363852304,1748898667533,-2000.76325445,0.00039806,30]
[363852305,1748899036807,200.0,0.00039993,120]
[363852310,1748899555409,-153.10650527,0.0001902,2]
[363852311,1748899558965,-241.31325734,0.0001902,2]
[363852312,1748899562209,-168.11529572,0.00019019,2]
[363852313,1748899567048,-131.88470428,0.00019019,2]
[363852314,1748899567070,-28.02750117,0.0001902,2]
[363852316,1748899594912,-182.16465219,0.0001902,2]
[363852317,1748899644457,-154.95185434,0.00019019,2]
[363852318,1748899646643,-173.224352,0.00019019,2]
[363852319,1748899648224,-164.67401434,0.00019019,2]
[363852320,1748899651501,-206.0,0.00019019,2]
[363852321,1748899675731,208.99220331,0.000181,2]
[363852322,1748899697026,294.58952118,0.00018923,2]
[363852323,1748899697049,76.08449282,0.00018923,2]
[363852324,1748899712111,1364.32844755,0.000149,2]
[363852325,1748899718713,150.0,0.00019001,2]
[363852351,1748899797713,-231.20174255,0.00019019,2]
[363852352,1748899799466,-69.94803677,0.00019019,2]
[363852353,1748899799489,-186.88879322,0.00019019,2]
[363852354,1748899801811,-213.11120678,0.00019019,2]
[363852355,1748899801835,-45.61544659,0.00019019,2]
[363852356,1748899802964,760.18264999,0.00019001,2]
[363852357,1748899805991,-168.72376841,0.00019019,2]
[363852358,1748899808151,-85.660785,0.00019019,2]
[363852359,1748899808413,-73.78273944,0.00019019,2]
[363852360,1748899813909,-162.51,0.00019019,2]
[363852361,1748899816055,-163.77927734,0.00019019,2]
[363852362,1748899817610,-183.40265608,0.00019019,2]
[363852363,1748899819239,-495.0710925,0.00019019,2]
[363852364,1748899821632,-121.45423464,0.00019019,2]
[363852365,1748899821656,-172.16265468,0.00019019,2]
[363852366,1748899827093,-175.85677956,0.00019019,2]
[363852367,1748899830819,-210.0013155,0.00019019,2]
[363852375,1748899831407,-291.97925026,0.00019019,2]
[363852376,1748899831417,-400.0,0.0001902,2]
[363852377,1748899831427,-81752.69803691,0.0001902,2]
[363852378,1748899831436,-250.0,0.0001916,2]
[363852379,1748899831446,-151.0,0.00019287,2]
[363852380,1748899831455,-151.0,0.00019287,2]
[363852381,1748899831466,-151.0,0.00019287,2]
[363852382,1748899831476,-151.0,0.00019288,2]
[363852383,1748899831486,-151.0,0.00019288,2]
[363852384,1748899831496,-300.0,0.000193,7]
[363852385,1748899831506,-600.0,0.000194,7]
[363852386,1748899831517,-1000.0,0.000195,7]
[363852387,1748899831527,-150.0,0.00019514,2]
[363852388,1748899831537,-1300.0,0.000196,7]
[363852389,1748899831547,-5902.44325251,0.00019645,2]
[363852390,1748899831558,-1700.0,0.000197,7]
[363852391,1748899831568,-300.0,0.000198,7]
[363852392,1748899831578,-300.0,0.000199,7]
[363852393,1748899831587,-798.09405,0.000199,7]
[363852394,1748899831597,-180.14448744,0.000199,3]
[363852395,1748899831607,-625.55712194,0.000199,2]
[363852396,1748899831616,-3305.16018238,0.000199,2]
[363852397,1748899831626,-249.47993506,0.000199,2]
[363852398,1748899831636,-150.36902545,0.00019965,2]
[363852399,1748899831645,-159.64707666,0.00019973,2]
[363852400,1748899831655,-159.6625614,0.00019973,2]
[363852401,1748899831665,-500.0,0.00019973,2]
[363852402,1748899831674,-462.16203915,0.00019973,2]
[363852403,1748899831685,-500.0,0.00019973,2]
[363852404,1748899831695,-500.0,0.00019973,2]
[363852405,1748899831705,-500.0,0.00019973,2]
[363852406,1748899831715,-500.0,0.00019973,2]
[363852407,1748899831725,-511.28603718,0.00019973,2]
[363852408,1748899831734,-500.0,0.00019973,2]
[363852409,1748899831744,-500.0,0.00019973,2]
[363852410,1748899831755,-500.0,0.00019973,2]
[363852411,1748899831767,-160.35,0.0001999,2]
[363852412,1748899831780,-160.35,0.0001999,2]
[363852414,1748899831793,-160.35,0.0001999,2]
[363852415,1748899831807,-160.35,0.0001999,2]
[363852417,1748899831818,-160.35,0.0001999,2]
[363852420,1748899831828,-160.35,0.0001999,2]
[363852422,1748899831837,-160.35,0.0001999,2]
[363852423,1748899831847,-160.35,0.0001999,2]
[363852426,1748899831856,-1342.16017895,0.0001999,2]
[363852427,1748899831866,-1342.16017895,0.0001999,2]
[363852430,1748899831875,-1342.16017895,0.0001999,2]
[363852432,1748899831885,-300.0,0.00019999,2]
[363852434,1748899831895,-300.0,0.00019999,2]
[363852438,1748899831905,-605.98986335,0.00019999,2]
[363852441,1748899831914,-274.09118918,0.00019999,2]
[363852443,1748899831924,-500.0,0.00019999,2]
[363852446,1748899831934,-500.0,0.00019999,2]
[363852448,1748899831943,-394.43517003,0.00019999,2]
[363852450,1748899831952,-500.0,0.00019999,2]
[363852451,1748899831962,-500.0,0.00019999,2]
[363852453,1748899831972,-500.0,0.00019999,2]
[363852455,1748899831982,-500.0,0.00019999,2]
[363852458,1748899831993,-500.0,0.00019999,2]
[363852460,1748899832005,-500.0,0.00019999,2]
[363852462,1748899832015,-500.0,0.00019999,2]
[363852464,1748899832026,-500.0,0.00019999,2]
[363852466,1748899832036,-500.0,0.00019999,2]
[363852468,1748899832046,-500.0,0.00019999,2]
[363852470,1748899832055,-500.0,0.00019999,2]
[363852471,1748899832067,-500.0,0.00019999,2]
[363852473,1748899832082,-500.0,0.00019999,2]
[363852475,1748899832095,-500.0,0.00019999,2]
[363852478,1748899832104,-500.0,0.00019999,2]
[363852480,1748899832114,-500.0,0.00019999,2]
[363852482,1748899832123,-500.0,0.00019999,2]
[363852484,1748899832133,-500.0,0.00019999,2]
[363852486,1748899832142,-500.0,0.00019999,2]
[363852488,1748899832152,-500.0,0.00019999,2]
[363852490,1748899832163,-400.0,0.00019999,2]
[363852492,1748899832172,-46827.019191,0.0002,2]
[363852495,1748899832186,-79698.01655149,0.0002,2]
[363852498,1748899832203,-2263.92358673,0.0002,2]
[363852500,1748899832214,-1148.7267556,0.0002,2]
[363852502,1748899832226,-1254.98903124,0.0002,2]
[363852504,1748899832238,-350.0,0.0002,2]
[363852507,1748899832252,-748.44104968,0.0002,2]
[363852509,1748899832264,-5023.00535554,0.0002,2]
[363852511,1748899832276,-585.79045532,0.0002,2]
[363852523,1748899832388,-8836.48017089,0.0002,2]
[363852526,1748899832400,-566849.77116762,0.0002,2]
[363852529,1748899832421,-450.0,0.0002,2]
[363852531,1748899832433,-95150.96512153,0.0002,2]
[363852533,1748899832445,-6283.82010927,0.0002,2]
[363852535,1748899832457,-716.5839206,0.0002,2]
[363852537,1748899832471,-80814.9818564,0.0002,2]
[363852540,1748899832482,-6671.21539224,0.0002,2]
[363852542,1748899832494,-2791.6271114,0.0002,2]
[363852544,1748899832508,-1693.6999999,0.0002,2]
[363852546,1748899832520,-6346.50000008,0.0002,2]
[363852548,1748899832532,-1249.58361904,0.0002,2]
[363852551,1748899832545,-285.71773869,0.0002,2]
[363852553,1748899832557,-2792.24553182,0.0002,2]
[363852555,1748899832568,-36142.31857075,0.0002,2]
[363852557,1748899832580,-856.5879686,0.0002,2]
[363852559,1748899832591,-646.14795238,0.0002,2]
[363852562,1748899832606,-6261.01289306,0.0002,2]
[363852592,1748899832878,-2445.75038882,0.0002,2]
[363852594,1748899832891,-302.0,0.0002,2]
[363853026,1748899837390,-7631.04508113,0.0002,2]
[363853029,1748899837411,-45638.76980502,0.0002,2]
[363853032,1748899837428,-3166.56321942,0.0002,2]
[363853035,1748899837453,-288.925,0.0002,2]
[363853038,1748899837471,-345.7300446,0.0002,2]
[363853041,1748899837487,-997.05116066,0.0002,2]
[363853043,1748899837502,-1222.56000018,0.0002,2]
[363853046,1748899837520,-584.78514729,0.0002,2]
[363853049,1748899837539,-59856.98657025,0.0002,2]
[363853052,1748899837558,-357.73545424,0.0002,2]
[363853055,1748899837577,-2157.15102673,0.0002,2]
[363853058,1748899837596,-3229.25396911,0.0002,2]
[363853061,1748899837614,-1771.25319966,0.0002,2]
[363853065,1748899837645,-1567.92316173,0.0002,2]
[363853067,1748899837662,-3335.00000002,0.0002,2]
[363853075,1748899837747,-8252170.97416484,0.0002,2]
[363853081,1748899837802,-277.595,0.0002,2]
[363853083,1748899837822,-8721.03899897,0.0002,2]
[363853314,1748899840338,-964352.05819272,0.0002,2]
[363853316,1748899840348,-460.0,0.0002,7]
[363853318,1748899840357,-427.27540685,0.0002,2]
[363853320,1748899840366,-4001.04367668,0.0002,2]
[363853322,1748899840376,-4000.0,0.0002,4]
[363853325,1748899840386,-159.0,0.00020065,2]
[363853327,1748899840395,-152.06267597,0.000205,2]
[363853329,1748899840405,-500.0,0.00020521,2]
[363853331,1748899840416,-4001.04367643,0.00020693,3]
[363853333,1748899840426,-420.0,0.0002073,2]
[363853335,1748899840435,-400.0,0.00020921,2]
[363853337,1748899840444,-400.0,0.00020921,2]
[363853338,1748899840454,-500.0,0.00020922,2]
[363853340,1748899840463,-1000.0,0.00020986,2]
[363853343,1748899840473,-1000.0,0.00020986,2]
[363853344,1748899840482,-1000.0,0.00020986,2]
[363853347,1748899840492,-4000.0,0.00021,4]
[363853349,1748899840502,-500.0,0.000211,2]
[363853351,1748899840512,-500.0,0.000211,2]
[363853353,1748899840521,-500.0,0.000211,2]
[363853354,1748899840531,-1000.0,0.00021166,7]
[363853356,1748899840540,-1000.0,0.00021166,7]
[363853358,1748899840550,-1000.0,0.00021166,7]
[363853360,1748899840559,-1000.0,0.00021166,7]
[363853362,1748899840569,-1000.0,0.00021176,7]
[363853365,1748899840579,-4001.04367643,0.00021486,5]
[363853367,1748899840588,-1000.0,0.00021648,2]
[363853369,1748899840598,-233.39858433,0.00021804,2]
[363853371,1748899840608,-32003.905548,0.000219,2]
[363853373,1748899840620,-4000.0,0.00022,4]
[363853375,1748899840629,-1000.0,0.00022004,2]
[363853377,1748899840639,-1000.0,0.00022004,7]
[363853379,1748899840648,-83927.65,0.000221,7]
[363853381,1748899840658,-1500.0,0.00022196,2]
[363853383,1748899840667,-4001.04367643,0.00022279,6]
[363853385,1748899840676,-587.0,0.00022596,2]
[363853387,1748899840686,-2000.0,0.00022744,2]
[363853389,1748899840696,-216.7332381,0.000229,2]
[363853391,1748899840705,-633.95,0.00023,2]
[363853392,1748899840714,-4000.0,0.00023,4]
[363853394,1748899840724,-4001.04367643,0.00023072,8]
[363853397,1748899840734,-150.36902539,0.00023288,2]
[363853398,1748899840744,-1631.53503806,0.00023292,2]
[363853401,1748899840754,-200.0,0.000235,2]
[363853402,1748899840764,-855.85,0.00023836,2]
[363853404,1748899840774,-4001.04367643,0.00023866,10]
[363853407,1748899840783,-302.49,0.00024,2]
[363853409,1748899840793,-301.97,0.00024,2]
[363853410,1748899840802,-301.85,0.00024,2]
[363853412,1748899840812,-301.89,0.00024,2]
[363853414,1748899840821,-303.32,0.00024,2]
[363853416,1748899840830,-301.02,0.00024,2]
[363853418,1748899840840,-302.05,0.00024,2]
[363853420,1748899840849,-300.31,0.00024,2]
[363853422,1748899840858,-302.24,0.00024,2]
[363853424,1748899840868,-302.11,0.00024,2]
[363853426,1748899840877,-300.17,0.00024,2]
[363853428,1748899840887,-303.0,0.00024,2]
[363853430,1748899840896,-301.79,0.00024,2]
[363853432,1748899840906,-305.6,0.00024,2]
[363853434,1748899840915,-302.92,0.00024,2]
[363853436,1748899840924,-303.93,0.00024,2]
[363853438,1748899840933,-301.68,0.00024,2]
[363853440,1748899840942,-301.35,0.00024,2]
[363853442,1748899840952,-303.95,0.00024,2]
[363853444,1748899840961,-303.0,0.00024,2]
[363853446,1748899840971,-300.58,0.00024,2]
[363853448,1748899840980,-305.43,0.00024,2]